[Event "6. Internationales Spandauer Weihnachtsopen 2023"]
[Site "Spandau, Germany"]
[Date "2023.12.29"]
[Round "5.1"]
[White "Daniel, Damian"]
[Black "Dahl, Christoph"]
[Result "0-1"]
[TimeControl "90 min+30 sec"]
[WhiteElo "2129"]
[BlackElo "2357"]

1. d4 {[%clk 01:30:55]} {[%emt 00:00:05]} Nf6 {[%clk 01:30:40]} {[%emt
00:00:27]} 2. c4 {[%clk 01:31:07]} {[%emt 00:00:09]} e6 {[%clk 01:30:55]}
{[%emt 00:00:18]} 3. Nc3 {[%clk 01:31:13]} {[%emt 00:00:21]} Bb4 {[%clk
01:30:52]} {[%emt 00:00:35]} 4. Nf3 {[%clk 01:24:09]} {[%emt 00:08:51]} d5
{[%clk 01:30:08]} 5. cxd5 {[%clk 01:21:46]} {[%emt 00:02:46]} exd5 {[%clk
01:29:21]} {[%emt 00:01:19]} 6. Bg5 {[%clk 01:21:43]} {[%emt 00:00:36]} h6
{[%clk 01:27:45]} {[%emt 00:02:04]} 7. Bxf6 {[%clk 01:20:46]} {[%emt 00:01:24]}
Qxf6 {[%clk 01:28:09]} {[%emt 00:00:07]} 8. Qb3 {[%clk 01:19:46]} {[%emt
00:01:33]} Qd6 {[%clk 01:23:06]} {[%emt 00:05:28]} 9. e3 {[%clk 01:18:27]}
{[%emt 00:01:46]} O-O {[%clk 01:20:28]} {[%emt 00:03:08]} 10. Bd3 {[%clk
01:17:12]} {[%emt 00:01:45]} c6 {[%clk 01:15:48]} {[%emt 00:05:13]} 11. O-O
{[%clk 01:10:29]} {[%emt 00:07:11]} Nd7 {[%clk 01:02:20]} {[%emt 00:13:58]} 12.
a3 {[%clk 00:57:48]} {[%emt 00:13:11]} Ba5 {[%clk 00:59:47]} {[%emt 00:03:08]}
13. Qc2 {[%clk 00:56:57]} {[%emt 00:01:17]} Bc7 {[%clk 00:58:09]} {[%emt
00:07:03]} 14. b4 {[%clk 00:38:35]} {[%emt 00:13:57]} a6 {[%clk 00:54:06]}
{[%emt 00:09:38]} 15. a4 {[%clk 00:32:19]} {[%emt 00:01:36]} Nf6 {[%clk
00:44:00]} {[%emt 00:10:35]} 16. b5 {[%clk 00:31:10]} {[%emt 00:01:40]} Ng4
{[%clk 00:29:19]} {[%emt 00:15:14]} 17. g3 {[%clk 00:27:53]} {[%emt 00:03:45]}
Qf6 {[%clk 00:23:56]} {[%emt 00:05:53]} 18. Kg2 {[%clk 00:26:55]} {[%emt
00:01:26]} Qe6 {[%clk 00:17:55]} {[%emt 00:06:31]} 19. Rfe1 {[%clk 00:19:54]}
{[%emt 00:09:09]} Nf6 {[%clk 00:16:01]} {[%emt 00:00:46]} 20. bxc6 {[%clk
00:18:32]} {[%emt 00:01:52]} Qh3+ {[%clk 00:14:27]} {[%emt 00:02:10]} 21. Kg1
{[%clk 00:18:29]} {[%emt 00:00:30]} bxc6 {[%clk 00:14:08]} {[%emt 00:00:46]} 22.
e4 {[%clk 00:09:41]} {[%emt 00:09:17]} Ba5 {[%clk 00:11:45]} {[%emt 00:03:03]}
23. Nd2 {[%clk 00:05:20]} {[%emt 00:04:41]} Rb8 {[%clk 00:06:36]} {[%emt
00:05:40]} 24. Bf1 {[%clk 00:04:49]} {[%emt 00:01:08]} Qh5 {[%clk 00:05:58]}
{[%emt 00:01:13]} 25. Bg2 {[%clk 00:03:26]} {[%emt 00:01:41]} Bh3 {[%clk
00:05:18]} {[%emt 00:01:22]} 26. Ra3 {[%clk 00:01:48]} {[%emt 00:01:55]} Bxg2
{[%clk 00:04:53]} {[%emt 00:00:57]} 27. Kxg2 {[%clk 00:02:13]} {[%emt
00:00:06]} Qg6 {[%clk 00:04:34]} {[%emt 00:00:51]} 28. f3 {[%clk 00:01:43]}
{[%emt 00:01:11]} Nh5 {[%clk 00:04:01]} {[%emt 00:00:57]} 29. Kh1 {[%clk
00:00:49]} {[%emt 00:01:15]} Rfe8 {[%clk 00:02:55]} {[%emt 00:01:36]} 30. Ra2
{[%clk 00:00:45]} {[%emt 00:00:38]} Rb4 {[%clk 00:02:28]} {[%emt 00:00:54]} 31.
Nb3 {[%clk 00:00:37]} {[%emt 00:00:39]} Bc7 {[%clk 00:01:35]} {[%emt 00:01:21]}
32. Rg1 {[%clk 00:00:42]} {[%emt 00:00:25]} Nf6 {[%clk 00:01:17]} {[%emt
00:00:49]} 33. e5 {[%clk 00:00:38]} {[%emt 00:00:36]} Qxc2 {[%clk 00:01:19]}
{[%emt 00:00:29]} 34. Rxc2 {[%clk 00:01:07]} Rxb3 {[%clk 00:01:42]} {[%emt
00:00:15]} 35. exf6 {[%clk 00:01:34]} Bb6 {[%clk 00:02:04]} {[%emt 00:00:14]}
36. Rd1 {[%clk 00:01:02]} {[%emt 00:00:55]} gxf6 {[%clk 00:02:08]} {[%emt
00:00:22]} 37. Kg2 {[%clk 00:01:08]} {[%emt 00:00:21]} Rb4 {[%clk 00:01:46]}
{[%emt 00:00:56]} 38. Rb1 {[%clk 00:00:41]} {[%emt 00:00:53]} a5 {[%clk
00:01:32]} {[%emt 00:00:45]} 39. Rd1 {[%clk 00:00:32]} {[%emt 00:00:41]} Bxd4
{[%clk 00:01:35]} {[%emt 00:00:25]} 40. Ne2 {[%clk 00:00:39]} {[%emt 00:00:23]}
Rb2 {[%clk 00:01:26]} {[%emt 00:00:43]} 41. Rxb2 {[%clk 00:00:38]} {[%emt
00:00:32]} Bxb2 {[%clk 00:01:52]} {[%emt 00:00:04]} 42. Rd2 {[%clk 00:00:42]}
{[%emt 00:00:21]} Be5 {[%clk 00:01:45]} {[%emt 00:00:37]} 43. f4 {[%clk
00:00:59]} {[%emt 00:00:16]} Ba1 {[%clk 00:02:04]} {[%emt 00:00:05]} 44. Kf3
{[%clk 00:01:22]} {[%emt 00:00:08]} f5 {[%clk 00:01:50]} {[%emt 00:00:44]} 45.
Rc2 {[%clk 00:01:04]} {[%emt 00:00:59]} d4 {[%clk 00:01:21]} {[%emt 00:00:47]}
46. Nc1 {[%clk 00:01:13]} {[%emt 00:00:29]} Bc3 {[%clk 00:01:05]} {[%emt
00:00:39]} 47. Kf2 {[%clk 00:00:56]} {[%emt 00:00:47]} Re3 {[%clk 00:01:07]}
{[%emt 00:00:40]} 48. Re2 {[%clk 00:00:47]} {[%emt 00:00:27]} Re6 {[%clk
00:00:51]} {[%emt 00:00:50]} 49. Rxe6 {[%clk 00:00:45]} {[%emt 00:00:35]} fxe6
{[%clk 00:01:16]} {[%emt 00:00:05]} 50. Ke2 {[%clk 00:01:03]} {[%emt 00:00:05]}
Kf7 {[%clk 00:01:25]} {[%emt 00:00:21]} 51. Kd3 {[%clk 00:01:23]} {[%emt
00:00:10]} e5 {[%clk 00:01:29]} {[%emt 00:00:26]} 52. fxe5 {[%clk 00:01:34]}
{[%emt 00:00:19]} Ke6 {[%clk 00:01:54]} {[%emt 00:00:10]} 53. Kc4 {[%clk
00:00:38]} {[%emt 00:01:20]} Kxe5 {[%clk 00:02:18]} {[%emt 00:00:06]} 54. Nd3+
{[%clk 00:00:40]} {[%emt 00:00:28]} Ke4 {[%clk 00:02:44]} {[%emt 00:00:06]} 55.
Nf4 {[%clk 00:00:35]} {[%emt 00:00:42]} Ke3 {[%clk 00:02:47]} {[%emt 00:00:19]}
56. Nd3 {[%clk 00:00:40]} {[%emt 00:00:34]} Kf3 {[%clk 00:01:44]} {[%emt
00:01:28]} 57. Ne5+ {[%clk 00:01:05]} {[%emt 00:00:05]} Kg2 {[%clk 00:02:00]}
{[%emt 00:00:09]} 58. Nf7 {[%clk 00:01:04]} {[%emt 00:02:09]} h5 {[%clk
00:01:06]} 59. Nd6 {[%clk 00:01:09]} {[%emt 00:00:11]} Kxh2 {[%clk 00:01:25]}
{[%emt 00:00:20]} 60. Nxf5 {[%clk 00:01:34]} Kh3 {[%clk 00:01:47]} {[%emt
00:00:07]} 61. Kd3 {[%clk 00:00:45]} {[%emt 00:01:15]} Kg4 {[%clk 00:02:10]}
{[%emt 00:00:09]} 62. Ng7 {[%clk 00:00:36]} {[%emt 00:00:39]} Ba1 {[%clk
00:02:16]} {[%emt 00:00:23]} 63. Kd2 {[%clk 00:00:34]} {[%emt 00:01:31]} d3
{[%clk 00:02:36]} 64. Nxh5 {[%clk 00:00:32]} Kxh5 {[%clk 00:03:00]} 65. Kxd3
{[%clk 00:01:01]} Be5 {[%clk 00:03:20]} {[%emt 00:01:01]} 66. Kd4 0-1

[Event "6. Internationales Spandauer Weihnachtsopen 2023"]
[Site "Spandau, Germany"]
[Date "2023.12.29"]
[Round "5.2"]
[White "Tschernatsch, Johannes"]
[Black "Dathe, Frederick"]
[Result "0-1"]
[TimeControl "90 min+30 sec"]
[WhiteElo "2335"]
[BlackElo "2143"]

1. e4 {[%clk 01:18:43]} {[%emt 00:08:05]} c5 {[%clk 01:30:37]} {[%emt
00:00:22]} 2. Nf3 {[%clk 01:19:08]} {[%emt 00:00:14]} d6 {[%clk 01:30:14]}
{[%emt 00:00:45]} 3. Bb5+ {[%clk 01:19:28]} {[%emt 00:00:18]} Nd7 {[%clk
01:30:19]} {[%emt 00:00:16]} 4. a4 {[%clk 01:19:30]} {[%emt 00:00:32]} Ngf6
{[%clk 01:30:02]} {[%emt 00:00:43]} 5. Nc3 {[%clk 01:19:51]} {[%emt 00:00:27]}
a6 {[%clk 01:29:31]} {[%emt 00:00:53]} 6. Be2 {[%clk 01:20:16]} b6 {[%clk
01:29:01]} {[%emt 00:00:56]} 7. d4 {[%clk 01:20:39]} {[%emt 00:00:11]} cxd4
{[%clk 01:29:15]} {[%emt 00:00:12]} 8. Qxd4 {[%clk 01:21:02]} {[%emt 00:00:46]}
Bb7 {[%clk 01:28:42]} {[%emt 00:00:25]} 9. O-O {[%clk 01:21:21]} {[%emt
00:00:35]} e6 {[%clk 01:27:06]} {[%emt 00:01:42]} 10. Rd1 {[%clk 01:21:44]}
{[%emt 00:00:24]} Qc7 {[%clk 01:25:08]} {[%emt 00:02:15]} 11. Nd2 {[%clk
01:06:09]} {[%emt 00:15:56]} d5 {[%clk 01:08:51]} {[%emt 00:16:50]} 12. exd5
{[%clk 01:05:54]} {[%emt 00:00:46]} 0-1

[Event "6. Internationales Spandauer Weihnachtsopen 2023"]
[Site "Spandau, Germany"]
[Date "2023.12.29"]
[Round "5.3"]
[White "Nemitz, Alfred"]
[Black "Goluch, Piotr"]
[Result "*"]
[TimeControl "90 min+30 sec"]
[WhiteElo "2219"]
[BlackElo "2312"]

1. d4 {[%clk 01:30:58]} {[%emt 00:00:04]} Nf6 {[%clk 01:30:54]} {[%emt
00:00:04]} 2. Nf3 {[%clk 01:31:21]} {[%emt 00:00:06]} e6 {[%clk 01:29:44]}
{[%emt 00:01:41]} 3. Bg5 {[%clk 01:31:45]} {[%emt 00:00:09]} Be7 {[%clk
01:28:06]} {[%emt 00:05:41]} 4. Nbd2 {[%clk 01:31:20]} d5 {[%clk 01:28:05]} 5.
e3 {[%clk 01:31:46]} O-O {[%clk 01:26:02]} {[%emt 00:00:26]} 6. Bd3 {[%clk
01:31:47]} {[%emt 00:00:29]} c5 {[%clk 01:26:05]} {[%emt 00:00:27]} 7. c3
{[%clk 01:32:11]} {[%emt 00:00:06]} Nc6 {[%clk 01:26:09]} {[%emt 00:00:26]} 8.
Ne5 {[%clk 01:31:23]} {[%emt 00:01:18]} Nd7 {[%clk 01:16:17]} {[%emt 00:10:22]}
9. Bxe7 {[%clk 01:21:25]} {[%emt 00:10:23]} Qxe7 {[%clk 01:15:13]} {[%emt
00:01:36]} 10. f4 {[%clk 01:21:01]} {[%emt 00:00:59]} f5 {[%clk 01:05:13]}
{[%emt 00:10:22]} 11. Ndf3 {[%clk 01:19:15]} {[%emt 00:02:16]} Ndxe5 {[%clk
01:05:21]} {[%emt 00:00:22]} 12. Nxe5 {[%clk 01:17:58]} {[%emt 00:01:48]} Nxe5
{[%clk 01:05:46]} {[%emt 00:00:07]} 13. fxe5 {[%clk 01:18:23]} {[%emt
00:00:04]} Bd7 {[%clk 01:01:25]} {[%emt 00:04:49]} 14. O-O {[%clk 01:02:49]}
{[%emt 00:16:09]} b5 {[%clk 01:01:39]} {[%emt 00:00:13]} 15. Bc2 {[%clk
01:00:24]} {[%emt 00:02:52]} b4 {[%clk 01:00:18]} {[%emt 00:01:54]} 16. cxb4
{[%clk 01:00:18]} {[%emt 00:00:33]} cxb4 {[%clk 01:00:42]} {[%emt 00:00:07]} 17.
Ba4 {[%clk 01:00:42]} {[%emt 00:00:05]} Rfc8 {[%clk 00:59:25]} {[%emt
00:01:47]} 18. Bxd7 {[%clk 00:58:37]} {[%emt 00:02:43]} Qxd7 {[%clk 00:59:50]}
19. Qd2 {[%clk 00:57:43]} {[%emt 00:01:21]} Rc4 {[%clk 00:56:40]} {[%emt
00:03:40]} 20. b3 {[%clk 00:48:52]} {[%emt 00:09:21]} Rc3 {[%clk 00:56:42]}
{[%emt 00:00:35]} 21. a3 {[%clk 00:49:20]} Rac8 {[%clk 00:51:05]} {[%emt
00:06:06]} 22. axb4 {[%clk 00:47:44]} {[%emt 00:02:08]} Rxb3 {[%clk 00:35:57]}
{[%emt 00:15:39]} 23. Rfc1 {[%clk 00:32:35]} {[%emt 00:15:33]} Rc4 {[%clk
00:32:05]} {[%emt 00:04:29]} 24. Qa2 {[%clk 00:25:25]} {[%emt 00:07:35]} Rxe3
{[%clk 00:21:44]} {[%emt 00:10:48]} 25. Rxc4 {[%clk 00:25:00]} {[%emt
00:00:54]} dxc4 {[%clk 00:22:09]} {[%emt 00:00:10]} 26. Qxc4 {[%clk 00:19:44]}
{[%emt 00:05:41]} Re4 {[%clk 00:22:23]} {[%emt 00:00:16]} 27. Ra6 {[%clk
00:17:38]} {[%emt 00:02:35]} Rxd4 {[%clk 00:18:17]} {[%emt 00:17:16]} 28. Qxe6+
{[%clk 00:17:48]} Qxe6 {[%clk 00:18:43]} 29. Rxe6 {[%clk 00:18:13]} Rxb4 {[%clk
00:18:45]} {[%emt 00:03:19]} 30. Re7 {[%clk 00:16:50]} Re4 {[%clk 00:18:59]} 31.
e6 {[%clk 00:15:15]} h6 {[%clk 00:19:12]} 32. Kf2 {[%clk 00:15:36]} Kh7 {[%clk
00:18:05]} 33. Kf3 {[%clk 00:15:56]} a6 {[%clk 00:15:50]} 34. h3 {[%clk
00:13:45]} {[%emt 00:01:10]} h5 {[%clk 00:16:16]} 35. Re8 {[%clk 00:13:25]} h4
{[%clk 00:14:29]} 36. e7 {[%clk 00:12:05]} {[%emt 00:00:42]} Kg6 {[%clk
00:14:49]} {[%emt 00:00:09]} 37. Ra8 {[%clk 00:10:52]} {[%emt 00:01:44]} Rxe7
{[%clk 00:15:16]} {[%emt 00:00:06]} 38. Rxa6+ {[%clk 00:11:21]} Kg5 {[%clk
00:15:38]} {[%emt 00:00:08]} 39. Ra5 {[%clk 00:11:25]} {[%emt 00:00:30]} Rb7
{[%clk 00:15:55]} {[%emt 00:00:08]} 40. Ra4 {[%clk 00:11:28]} {[%emt 00:00:27]}
Rb5 {[%clk 00:16:02]} {[%emt 00:00:23]} 41. Rc4 {[%clk 00:11:39]} {[%emt
00:00:20]} Kh5 {[%clk 00:16:21]} {[%emt 00:00:11]} 42. Rc8 {[%clk 00:11:00]}
{[%emt 00:01:12]} g5 {[%clk 00:16:40]} {[%emt 00:00:07]} 43. Rg8 {[%clk
00:10:19]} {[%emt 00:01:17]} Rb3+ {[%clk 00:16:47]} {[%emt 00:00:20]} 44. Kf2
{[%clk 00:10:46]} Rb2+ {[%clk 00:17:14]} {[%emt 00:00:06]} 45. Kf3 {[%clk
00:08:30]} {[%emt 00:02:43]} g4+ {[%clk 00:17:18]} {[%emt 00:00:27]} 46. hxg4+
{[%clk 00:04:47]} {[%emt 00:04:13]} fxg4+ {[%clk 00:17:22]} {[%emt 00:00:25]}
47. Kf4 {[%clk 00:05:14]} {[%emt 00:00:06]} Rf2+ {[%clk 00:17:47]} {[%emt
00:00:04]} 48. Ke5 {[%clk 00:05:25]} {[%emt 00:00:21]} Rxg2 {[%clk 00:17:32]}
{[%emt 00:00:41]} 49. Rh8 {[%clk 00:05:49]} {[%emt 00:00:14]} Kg6 {[%clk
00:17:28]} {[%emt 00:00:27]} 50. Rxh4 {[%clk 00:05:10]} {[%emt 00:01:07]} Kg5
{[%clk 00:17:54]} {[%emt 00:00:12]} *

[Event "6. Internationales Spandauer Weihnachtsopen 2023"]
[Site "Spandau, Germany"]
[Date "2023.12.29"]
[Round "5.4"]
[White "Torosyan, Bagrat"]
[Black "Richter, Leonard"]
[Result "0-1"]
[TimeControl "90 min+30 sec"]
[WhiteElo "2024"]
[BlackElo "2253"]

1. e4 {[%clk 01:25:37]} {[%emt 00:05:26]} c5 {[%clk 01:30:56]} {[%emt
00:00:12]} 2. Nf3 {[%clk 01:25:17]} {[%emt 00:00:43]} d6 {[%clk 01:31:19]}
{[%emt 00:00:07]} 3. d4 {[%clk 01:25:04]} {[%emt 00:00:47]} cxd4 {[%clk
01:31:42]} {[%emt 00:00:07]} 4. Nxd4 {[%clk 01:25:30]} Nf6 {[%clk 01:32:05]}
{[%emt 00:00:09]} 5. Nc3 {[%clk 01:25:57]} Nc6 {[%clk 01:32:27]} {[%emt
00:00:08]} 6. Bg5 {[%clk 01:26:02]} {[%emt 00:00:22]} Bd7 {[%clk 01:32:21]}
{[%emt 00:00:37]} 7. Qd3 {[%clk 01:22:47]} {[%emt 00:03:48]} Rc8 {[%clk
01:27:10]} {[%emt 00:05:37]} 8. f4 {[%clk 01:20:22]} {[%emt 00:02:55]} Nb4
{[%clk 01:09:53]} {[%emt 00:18:09]} 9. Qd2 {[%clk 01:17:07]} {[%emt 00:03:19]}
Qb6 {[%clk 01:07:30]} {[%emt 00:02:54]} 10. Bxf6 {[%clk 01:03:46]} {[%emt
00:13:48]} gxf6 {[%clk 01:07:54]} {[%emt 00:00:38]} 11. Nf3 {[%clk 01:03:22]}
{[%emt 00:00:34]} Bh6 {[%clk 00:55:22]} {[%emt 00:12:51]} 12. g3 {[%clk
01:03:15]} {[%emt 00:00:55]} Bc6 {[%clk 00:49:37]} {[%emt 00:05:56]} 13. O-O-O
{[%clk 00:56:16]} {[%emt 00:08:01]} f5 {[%clk 00:42:46]} {[%emt 00:06:49]} 14.
Nd4 {[%clk 00:44:37]} {[%emt 00:12:44]} Bg7 {[%clk 00:38:27]} {[%emt 00:04:36]}
15. a3 {[%clk 00:38:11]} {[%emt 00:06:35]} Bxe4 {[%clk 00:27:04]} {[%emt
00:11:56]} 16. Nxe4 {[%clk 00:35:41]} {[%emt 00:02:56]} Rxc2+ {[%clk 00:27:10]}
{[%emt 00:00:41]} 17. Qxc2 {[%clk 00:33:38]} {[%emt 00:02:36]} Nxc2 {[%clk
00:27:27]} {[%emt 00:00:08]} 18. Bb5+ {[%clk 00:32:04]} {[%emt 00:01:50]} Kf8
{[%emt 00:02:08]} 0-1

[Event "6. Internationales Spandauer Weihnachtsopen 2023"]
[Site "Spandau, Germany"]
[Date "2023.12.29"]
[Round "5.5"]
[White "Tiarks, Jann-Christian"]
[Black "Solberg, Joachim"]
[Result "1/2-1/2"]
[TimeControl "90 min+30 sec"]
[WhiteElo "2224"]
[BlackElo "2162"]

1. e4 {[%clk 01:30:58]} {[%emt 00:00:06]} c5 {[%clk 01:23:42]} {[%emt
00:07:16]} 2. Nf3 {[%clk 01:31:21]} {[%emt 00:00:06]} Nc6 {[%clk 01:23:36]}
{[%emt 00:00:39]} 3. d4 {[%clk 01:31:43]} {[%emt 00:00:05]} cxd4 {[%clk
01:24:02]} {[%emt 00:00:07]} 4. Nxd4 {[%clk 01:32:06]} {[%emt 00:00:03]} Nf6
{[%clk 01:24:26]} {[%emt 00:00:06]} 5. Nc3 {[%clk 01:32:30]} {[%emt 00:00:06]}
e5 {[%clk 01:23:44]} {[%emt 00:01:14]} 6. Ndb5 {[%clk 01:32:53]} {[%emt
00:00:06]} d6 {[%clk 01:24:10]} {[%emt 00:00:07]} 7. Bg5 {[%clk 01:33:10]}
{[%emt 00:00:14]} a6 {[%clk 01:24:35]} {[%emt 00:00:04]} 8. Na3 {[%clk
01:33:35]} {[%emt 00:00:05]} b5 {[%clk 01:25:03]} {[%emt 00:00:04]} 9. Nab1
{[%clk 01:33:58]} {[%emt 00:00:05]} Be7 {[%clk 01:24:42]} {[%emt 00:00:47]} 10.
Bxf6 {[%clk 01:34:05]} {[%emt 00:00:23]} Bxf6 {[%clk 01:21:16]} {[%emt
00:04:02]} 11. a4 {[%clk 01:34:22]} {[%emt 00:00:09]} b4 {[%clk 01:21:26]}
{[%emt 00:00:23]} 12. Nd5 {[%clk 01:34:45]} {[%emt 00:00:06]} O-O {[%clk
01:21:32]} {[%emt 00:00:21]} 13. Bc4 {[%clk 01:35:09]} {[%emt 00:00:10]} Be6
{[%clk 01:20:07]} {[%emt 00:01:54]} 14. O-O {[%clk 01:35:14]} {[%emt 00:00:21]}
Bg5 {[%clk 01:18:16]} {[%emt 00:02:30]} 15. Qd3 {[%clk 01:35:32]} {[%emt
00:00:05]} a5 {[%clk 01:17:49]} {[%emt 00:00:55]} 16. c3 {[%clk 01:35:52]}
{[%emt 00:00:10]} bxc3 {[%clk 01:17:55]} {[%emt 00:00:24]} 17. Nbxc3 {[%clk
01:35:58]} {[%emt 00:00:29]} Ne7 {[%clk 01:17:50]} {[%emt 00:00:33]} 18. Rfd1
{[%clk 01:31:19]} {[%emt 00:05:02]} Nxd5 {[%clk 01:11:24]} {[%emt 00:06:55]} 19.
Bxd5 {[%clk 01:27:48]} {[%emt 00:04:01]} Rb8 {[%clk 01:11:12]} {[%emt
00:00:43]} 20. Nb5 {[%clk 01:24:49]} {[%emt 00:03:28]} Qb6 {[%clk 01:07:40]}
{[%emt 00:04:06]} 21. Qg3 {[%clk 01:18:02]} {[%emt 00:07:13]} Be7 {[%clk
00:59:27]} {[%emt 00:08:47]} 22. Rac1 {[%clk 01:15:24]} {[%emt 00:03:04]} Bd7
{[%clk 00:51:54]} {[%emt 00:08:06]} 23. Bc4 {[%clk 01:10:11]} {[%emt 00:05:40]}
Rbc8 {[%clk 00:50:09]} {[%emt 00:02:16]} 24. b3 {[%clk 01:09:00]} {[%emt
00:01:39]} Be6 {[%clk 00:35:15]} {[%emt 00:15:25]} 25. Bxe6 {[%clk 00:59:26]}
{[%emt 00:10:08]} fxe6 {[%clk 00:34:53]} {[%emt 00:00:55]} 26. Rc4 {[%emt
00:00:05]} Rce8 {[%clk 00:35:20]} 27. Rc8 {[%clk 01:00:10]} 1/2-1/2

[Event "6. Internationales Spandauer Weihnachtsopen 2023"]
[Site "Spandau, Germany"]
[Date "2023.12.29"]
[Round "5.6"]
[White "Baldauf, Marco"]
[Black "Dzikowski, Michal"]
[Result "1-0"]
[TimeControl "90 min+30 sec"]
[WhiteElo "2488"]
[BlackElo "2060"]

1. e4 {[%clk 01:30:54]} {[%emt 00:00:04]} c5 {[%clk 01:30:10]} {[%emt
00:00:48]} 2. Nf3 {[%clk 01:31:18]} {[%emt 00:00:05]} a6 {[%clk 01:30:37]}
{[%emt 00:00:07]} 3. c3 {[%clk 01:30:05]} {[%emt 00:01:40]} d5 {[%clk
01:30:52]} {[%emt 00:00:18]} 4. exd5 {[%clk 01:30:31]} Qxd5 {[%clk 01:31:16]}
{[%emt 00:00:06]} 5. d4 {[%clk 01:30:58]} {[%emt 00:00:06]} e6 {[%clk
01:30:53]} {[%emt 00:00:50]} 6. Be3 {[%clk 01:27:00]} {[%emt 00:04:28]} cxd4
{[%clk 01:13:28]} {[%emt 00:17:51]} 7. cxd4 {[%clk 01:27:26]} {[%emt 00:00:06]}
Nf6 {[%clk 01:13:08]} {[%emt 00:00:48]} 8. Nc3 {[%clk 01:27:53]} {[%emt
00:00:18]} Bb4 {[%clk 01:12:37]} {[%emt 00:00:50]} 9. Bd3 {[%clk 01:24:19]}
{[%emt 00:08:59]} O-O {[%clk 01:10:41]} {[%emt 00:00:12]} 10. O-O {[%clk
01:24:46]} Bxc3 {[%clk 01:07:25]} {[%emt 00:01:08]} 11. bxc3 {[%clk 01:25:12]}
{[%emt 00:00:04]} Nc6 {[%clk 01:05:47]} {[%emt 00:02:02]} 12. c4 {[%clk
01:19:24]} {[%emt 00:07:03]} Qd6 {[%clk 01:02:22]} {[%emt 00:03:10]} 13. h3
{[%clk 01:12:55]} {[%emt 00:06:59]} Rd8 {[%clk 00:56:00]} {[%emt 00:06:56]} 14.
Be2 {[%clk 01:08:24]} {[%emt 00:04:56]} h6 {[%clk 00:47:01]} {[%emt 00:09:29]}
15. Qd2 {[%clk 00:57:41]} {[%emt 00:11:14]} Ne4 {[%clk 00:43:40]} {[%emt
00:03:51]} 16. Qc2 {[%clk 00:52:04]} {[%emt 00:06:12]} f5 {[%clk 00:40:08]}
{[%emt 00:05:13]} 17. Rab1 {[%clk 00:50:12]} {[%emt 00:01:07]} Ng5 {[%clk
00:38:33]} {[%emt 00:02:09]} 18. Nxg5 {[%clk 00:39:54]} {[%emt 00:10:43]} hxg5
{[%clk 00:38:56]} {[%emt 00:00:09]} 19. d5 {[%clk 00:40:21]} {[%emt 00:00:04]}
exd5 {[%clk 00:33:38]} {[%emt 00:05:47]} 20. cxd5 {[%clk 00:40:47]} {[%emt
00:00:05]} Nb4 {[%clk 00:29:45]} {[%emt 00:04:24]} 21. Qc4 {[%clk 00:35:35]}
{[%emt 00:05:37]} Nxd5 {[%clk 00:26:27]} {[%emt 00:03:49]} 22. Bxg5 {[%clk
00:31:55]} {[%emt 00:04:18]} b5 {[%clk 00:24:49]} {[%emt 00:01:59]} 23. Qb3
{[%clk 00:32:22]} {[%emt 00:00:06]} Be6 {[%clk 00:19:18]} {[%emt 00:05:57]} 24.
Bxd8 {[%clk 00:31:07]} {[%emt 00:02:07]} Rxd8 {[%clk 00:18:08]} {[%emt
00:01:18]} 25. Rfd1 {[%clk 00:29:31]} {[%emt 00:02:10]} Qe5 {[%clk 00:13:39]}
{[%emt 00:04:57]} 26. Bf3 {[%clk 00:29:11]} {[%emt 00:00:48]} Rd6 {[%clk
00:13:32]} {[%emt 00:00:39]} 27. Re1 {[%clk 00:27:01]} {[%emt 00:02:40]} Qf6
{[%clk 00:09:46]} {[%emt 00:04:13]} 28. Rxe6 {[%clk 00:25:57]} {[%emt
00:01:41]} Qxe6 {[%clk 00:10:09]} {[%emt 00:00:04]} 29. Rd1 {[%clk 00:26:23]}
{[%emt 00:00:04]} 1-0

[Event "6. Internationales Spandauer Weihnachtsopen 2023"]
[Site "Spandau, Germany"]
[Date "2023.12.29"]
[Round "6.1"]
[White "Dahl, Christoph"]
[Black "Richter, Leonard"]
[Result "1/2-1/2"]
[TimeControl "90 min+30 sec"]
[WhiteElo "2357"]
[BlackElo "2253"]

1. e4 {[%clk 01:30:58]} c5 {[%clk 01:30:54]} {[%emt 00:00:11]} 2. Nf3 {[%clk
01:31:01]} {[%emt 00:00:37]} d6 {[%clk 01:31:18]} 3. d4 {[%clk 01:31:21]}
{[%emt 00:00:11]} cxd4 {[%clk 01:31:43]} 4. Nxd4 {[%clk 01:31:27]} {[%emt
00:00:23]} Nf6 {[%clk 01:32:08]} {[%emt 00:00:06]} 5. Nc3 {[%clk 01:31:24]}
{[%emt 00:00:33]} Nc6 {[%clk 01:32:31]} {[%emt 00:00:04]} 6. Bg5 {[%clk
01:31:13]} {[%emt 00:00:49]} Bd7 {[%clk 01:32:50]} {[%emt 00:00:19]} 7. Qd2
{[%clk 01:31:09]} {[%emt 00:00:18]} Rc8 {[%clk 01:33:08]} {[%emt 00:00:11]} 8.
O-O-O {[%clk 01:30:54]} {[%emt 00:00:46]} Nxd4 {[%clk 01:33:00]} {[%emt
00:00:39]} 9. Qxd4 {[%clk 01:31:16]} {[%emt 00:00:15]} Qa5 {[%clk 01:33:14]}
{[%emt 00:00:08]} 10. f4 {[%clk 01:30:54]} {[%emt 00:00:53]} Rxc3 {[%clk
01:32:53]} {[%emt 00:00:50]} 11. bxc3 {[%clk 01:30:21]} {[%emt 00:01:05]} e5
{[%clk 01:32:39]} {[%emt 00:00:41]} 12. Qb4 {[%clk 01:28:34]} {[%emt 00:02:17]}
Qxb4 {[%clk 01:33:00]} {[%emt 00:00:10]} 13. cxb4 {[%clk 01:28:58]} {[%emt
00:00:05]} Nxe4 {[%clk 01:33:22]} {[%emt 00:00:08]} 14. Bh4 {[%clk 01:28:54]}
{[%emt 00:00:44]} h6 {[%clk 01:31:14]} {[%emt 00:02:30]} 15. Re1 {[%clk
01:21:25]} {[%emt 00:07:59]} d5 {[%clk 01:24:47]} {[%emt 00:06:56]} 16. Bd3
{[%clk 01:10:14]} {[%emt 00:11:46]} Bxb4 {[%clk 01:19:59]} {[%emt 00:05:13]} 17.
Bxe4 {[%clk 01:10:12]} {[%emt 00:00:36]} Bxe1 {[%clk 01:20:18]} {[%emt
00:00:10]} 18. Rxe1 {[%clk 01:10:33]} {[%emt 00:00:15]} dxe4 {[%clk 01:20:38]}
{[%emt 00:00:04]} 19. Rxe4 {[%clk 01:10:56]} {[%emt 00:00:16]} O-O {[%clk
01:19:33]} {[%emt 00:01:24]} 20. Rxe5 {[%clk 01:10:56]} {[%emt 00:00:33]}
1/2-1/2